bitfinex/quotes_BTCUSD_20250527
["timestamp","ask_amount","ask_price","bid_price","bid_amount"]
[1748328588239,0.24426789,109210.0,109200.0,1.34883226]
[1748328588462,0.07029115,109210.0,109200.0,1.63250934]
[1748328588713,0.06113448,109210.0,109200.0,1.65082326]
[1748328589162,0.07029089,109210.0,109200.0,1.74034477]
[1748328590484,0.23511197,109210.0,109200.0,0.34307161]
[1748328590694,0.23511197,109210.0,109200.0,0.58125929]
[1748328590913,0.23511197,109210.0,109200.0,0.59041654]
[1748328591576,0.23511197,109210.0,109200.0,0.91928686]
[1748328591782,0.23511197,109210.0,109200.0,0.91828686]
[1748328592015,0.23511197,109210.0,109200.0,1.25828686]
[1748328592229,0.23511197,109210.0,109200.0,1.34780837]
[1748328592931,0.2436393,109210.0,109200.0,1.34680837]
[1748328593383,0.2436393,109210.0,109200.0,1.34680846]
[1748328593384,0.23448289,109210.0,109200.0,1.34680846]
[1748328593802,0.23448289,109210.0,109200.0,1.35596571]
[1748328594536,0.22532639,109210.0,109200.0,1.15450094]
[1748328594750,0.22532639,109210.0,109200.0,1.16365836]
[1748328595423,0.22532639,109210.0,109200.0,1.35596588]
[1748328596331,0.22532639,109210.0,109200.0,1.14534344]
[1748328596750,0.22532639,109210.0,109200.0,1.15450094]
[1748328597316,0.22532639,109210.0,109200.0,0.34107161]
[1748328597597,0.23986724,109210.0,109200.0,0.34107161]
[1748328597822,0.23986724,109210.0,109200.0,0.34]
[1748328598497,0.22370752,109200.0,109190.0,1.06431032]
[1748328598712,0.23223485,109200.0,109190.0,1.06431032]
[1748328598935,0.23223485,109200.0,109190.0,1.15383183]
[1748328599860,0.23223485,109200.0,109190.0,1.15483183]
[1748328601821,0.23225448,109200.0,109190.0,1.15483183]
[1748328602046,0.23225448,109200.0,109190.0,1.15583183]
[1748328602739,0.23225448,109200.0,109190.0,1.28583183]
[1748328603074,0.23225448,109200.0,109190.0,1.28483183]
[1748328603282,0.23225448,109200.0,109190.0,1.28383183]
[1748328605683,0.24241173,109200.0,109190.0,1.29299009]
[1748328606125,0.23325448,109200.0,109190.0,1.29299009]
[1748328606768,0.22609714,109200.0,109190.0,0.95496151]
[1748328606996,0.22609714,109200.0,109190.0,1.28383183]
[1748328607213,0.24063799,109200.0,109190.0,0.13]
[1748328607648,0.22402513,109190.0,109180.0,0.7294]
[1748328607866,0.23856598,109190.0,109180.0,0.7294]
[1748328608084,0.19234274,109180.0,109170.0,0.78476]
[1748328608309,0.22404274,109180.0,109170.0,0.87428151]
[1748328608492,0.22404274,109180.0,109170.0,0.7848]
[1748328608737,0.23858359,109180.0,109170.0,0.7848]
[1748328608955,0.23858359,109180.0,109170.0,1.1248]
[1748328609797,0.23710121,109170.0,109160.0,0.003]
[1748328610238,0.23710121,109170.0,109160.0,0.343]
[1748328613830,0.23710121,109170.0,109160.0,0.67187032]
[1748328614047,0.23710121,109170.0,109160.0,0.76139183]
[1748328615501,0.24626098,109170.0,109160.0,0.94460912]
[1748328615716,0.24626098,109170.0,109160.0,0.76139183]
[1748328616317,0.24626098,109170.0,109160.0,0.42139183]
[1748328617007,0.24626098,109170.0,109160.0,0.003]
[1748328617240,0.24626098,109170.0,109160.0,0.33187032]
[1748328619484,0.20152013,109170.0,109160.0,0.53340891]
[1748328619694,0.02747956,109170.0,109160.0,0.55172971]
[1748328619900,0.21984009,109170.0,109160.0,0.53340908]
[1748328620114,0.21984009,109170.0,109160.0,0.62293059]
[1748328620319,0.21068032,109170.0,109160.0,0.62293059]
[1748328622712,0.01831937,109170.0,109160.0,0.64125138]
[1748328622917,0.0091596,109170.0,109160.0,0.65655138]
[1748328623124,0.02747872,109170.0,109160.0,0.65655138]
[1748328623331,0.01831895,109170.0,109160.0,0.65655138]
[1748328623543,0.00915935,109170.0,109160.0,0.99655138]
[1748328623748,0.24136086,109180.0,109170.0,0.21067982]
[1748328623960,0.24136086,109180.0,109170.0,0.61751654]
[1748328624203,0.21475018,109200.0,109190.0,0.00915834]
[1748328624422,0.02747361,109190.0,109180.0,0.61162835]
[1748328624630,0.02747361,109190.0,109180.0,0.6093387]
[1748328625048,0.03663162,109190.0,109180.0,0.60018027]
[1748328625259,0.03663162,109190.0,109180.0,0.68970178]
[1748328625676,0.03663162,109190.0,109180.0,1.0185721]
[1748328625677,0.04578954,109190.0,109180.0,1.0185721]
[1748328625883,0.04579021,109190.0,109180.0,1.3585721]
[1748328626407,0.04579071,109190.0,109180.0,1.3585721]
[1748328626624,0.03663237,109190.0,109180.0,1.3585721]
[1748328627090,0.04263237,109190.0,109180.0,1.3585721]
[1748328627666,0.05179071,109190.0,109180.0,1.3585721]
[1748328627879,0.05179071,109190.0,109180.0,1.35857227]
[1748328628090,0.05179071,109190.0,109180.0,1.36773095]
[1748328628294,0.05179071,109190.0,109180.0,1.37688954]
[1748328629634,0.006,109190.0,109180.0,1.4664351]
[1748328629837,0.006,109190.0,109180.0,1.4988351]
[1748328630051,0.01515759,109190.0,109180.0,1.4988351]
[1748328630482,0.02431543,109190.0,109180.0,1.16996478]
[1748328630716,0.01831543,109190.0,109180.0,1.4988351]
[1748328630921,0.01831535,109190.0,109180.0,1.4988351]
[1748328631140,0.01931535,109190.0,109180.0,1.4988351]
[1748328632199,0.02847319,109190.0,109180.0,1.4827351]
[1748328632403,0.01931535,109190.0,109180.0,1.4827351]
[1748328632602,0.02031535,109190.0,109180.0,1.4827351]
[1748328633673,0.02947319,109190.0,109180.0,1.4827351]
[1748328635222,0.0386312,109190.0,109180.0,1.4827351]
[1748328635444,0.02947319,109190.0,109180.0,1.4827351]
[1748328636521,0.0386312,109190.0,109180.0,1.4664351]
[1748328637078,0.23428314,109190.0,109180.0,0.66887032]
[1748328637291,0.24882399,109190.0,109180.0,0.72388]
[1748328641480,0.24882399,109190.0,109180.0,1.05275032]
[1748328643619,0.24882399,109190.0,109180.0,0.66887032]
[1748328644797,0.24882399,109190.0,109180.0,0.34]
[1748328645035,0.24882399,109190.0,109180.0,0.66887032]
[1748328645660,0.24882399,109190.0,109180.0,0.75839183]
[1748328646097,0.24882399,109190.0,109170.0,0.77928]
[1748328646298,0.23878359,109180.0,109170.0,0.3954]
[1748328646870,0.23878359,109180.0,109170.0,0.72427032]
[1748328647078,0.24733926,109180.0,109170.0,0.72427032]
[1748328647689,0.24833926,109180.0,109170.0,0.72427032]
[1748328647892,0.22436036,109170.0,109160.0,0.72588]
[1748328648304,0.22436036,109170.0,109160.0,1.05475032]
[1748328648513,0.23352013,109170.0,109160.0,1.23796761]
[1748328648707,0.23352013,109170.0,109160.0,1.24712839]
[1748328648959,0.22436036,109170.0,109160.0,1.05475032]
[1748328649328,0.22436036,109170.0,109160.0,1.10569531]
[1748328650362,0.22436036,109170.0,109160.0,1.11585617]
[1748328650568,0.20856036,109170.0,109160.0,1.11585617]
[1748328650780,0.20856036,109170.0,109160.0,1.11685617]
[1748328651257,0.20856036,109170.0,109160.0,1.24685617]
[1748328651657,0.19236036,109170.0,109160.0,1.43923415]
[1748328651868,0.02747939,109170.0,109160.0,1.45755512]
[1748328652073,0.03663941,109170.0,109160.0,1.45755512]
[1748328652739,0.0326,109180.0,109160.0,1.43007296]
[1748328652961,0.19232531,109190.0,109170.0,1.269465]
[1748328653170,0.2014834,109190.0,109180.0,1.25429216]
[1748328653378,0.2014834,109190.0,109180.0,1.27260994]
[1748328654030,0.21003864,109190.0,109180.0,1.27260994]
[1748328654236,0.21003864,109190.0,109180.0,1.36213145]
[1748328654656,0.21203864,109190.0,109180.0,1.36213145]
[1748328655102,0.21203864,109190.0,109180.0,1.3529726]
[1748328656135,0.2034834,109190.0,109180.0,1.3529726]
[1748328656334,0.2054834,109190.0,109180.0,1.3529726]
[1748328657300,0.2054834,109190.0,109180.0,0.81344151]
[1748328657504,0.2220834,109190.0,109180.0,1.0619495]
[1748328657713,0.2220834,109190.0,109180.0,1.26345134]
[1748328657916,0.2220834,109190.0,109180.0,1.27261027]
[1748328658121,0.2054834,109190.0,109180.0,1.28176912]
[1748328658322,0.2054834,109190.0,109180.0,1.35297285]
[1748328658562,0.2054834,109190.0,109180.0,1.36213178]
[1748328660720,0.2054834,109190.0,109180.0,1.37129063]
[1748328661861,0.2054834,109190.0,109180.0,1.36213178]
[1748328665569,0.2054834,109190.0,109180.0,1.37129063]
[1748328665746,0.21404489,109190.0,109180.0,1.37129063]
[1748328667556,0.21404489,109190.0,109180.0,1.35297285]
[1748328667770,0.21404489,109190.0,109180.0,1.37129046]
[1748328668719,0.21404489,109190.0,109180.0,1.36213178]
[1748328669167,0.21404489,109190.0,109180.0,1.37129063]
[1748328669856,0.2054834,109190.0,109180.0,1.37129063]
[1748328671608,0.004,109190.0,109180.0,1.38721409]
[1748328671820,0.004,109190.0,109180.0,1.40361409]
[1748328672458,0.002,109190.0,109180.0,1.40361409]
[1748328672685,0.0366285,109200.0,109190.0,0.55064098]
[1748328672908,0.0366285,109200.0,109190.0,0.87035354]
[1748328673157,0.21977868,109200.0,109190.0,0.95987505]
[1748328673377,0.23607868,109200.0,109190.0,0.95987505]
[1748328674250,0.23606477,109200.0,109190.0,0.34]
[1748328674467,0.25060562,109200.0,109190.0,0.7256]
[1748328674680,0.25060562,109200.0,109190.0,1.05447032]
[1748328675107,0.25260562,109200.0,109190.0,1.05447032]
[1748328675396,0.26116227,109200.0,109190.0,1.05447032]
[1748328675547,0.26116227,109200.0,109190.0,1.14399183]
[1748328675957,0.26116227,109200.0,109190.0,0.7256]
[1748328676232,0.26116227,109200.0,109190.0,1.05447032]
[1748328683700,0.26116227,109200.0,109190.0,0.34]
[1748328684622,0.22532513,109190.0,109180.0,0.38556]
[1748328684846,0.22384274,109180.0,109170.0,0.32887032]
[1748328685079,0.23838359,109180.0,109170.0,0.32887032]
[1748328685320,0.23838359,109180.0,109170.0,0.66887032]
[1748328685786,0.24694024,109180.0,109170.0,0.66887032]
[1748328686648,0.24694024,109180.0,109170.0,0.75839183]
[1748328687108,0.25609917,109180.0,109170.0,0.75839183]
[1748328687329,0.25609917,109180.0,109170.0,0.75939183]
[1748328687753,0.25709917,109180.0,109170.0,0.75839183]
[1748328687968,0.25809917,109180.0,109170.0,0.75839183]
[1748328689233,0.24355832,109180.0,109170.0,0.94159234]
[1748328689438,0.22785832,109180.0,109170.0,0.95075228]
[1748328689634,0.22785832,109180.0,109170.0,0.62188196]
[1748328689796,0.21869939,109180.0,109170.0,0.75839183]
[1748328689992,0.21869939,109180.0,109170.0,0.95075228]
[1748328690396,0.20289939,109180.0,109170.0,0.95075228]
[1748328690597,0.23529939,109180.0,109170.0,0.75839183]
[1748328690862,0.22674274,109180.0,109170.0,0.75839183]
[1748328691158,0.24128359,109180.0,109170.0,0.66887032]
[1748328692719,0.24984482,109180.0,109170.0,0.66887032]
[1748328696486,0.24128359,109180.0,109170.0,0.66887032]
[1748328698776,0.24128359,109180.0,109170.0,0.32887032]
[1748328699005,0.20746036,109170.0,109160.0,1.29941717]
[1748328699214,0.22306036,109170.0,109160.0,1.92124896]
[1748328699395,0.22306036,109170.0,109160.0,1.53459183]
[1748328699640,0.22306036,109170.0,109160.0,1.7269699]
[1748328699848,0.21390051,109170.0,109160.0,1.53459183]
[1748328700270,0.21390051,109170.0,109160.0,1.53559183]
[1748328700477,0.21390051,109170.0,109160.0,1.15679183]
[1748328701134,0.21390051,109170.0,109160.0,0.003]
[1748328701352,0.30261502,109170.0,109160.0,0.003]
[1748328701582,0.31802692,109170.0,109160.0,0.003]
[1748328701816,0.32658193,109170.0,109160.0,0.003]
[1748328702455,0.23155689,109150.0,109140.0,0.12988599]
[1748328702670,0.23155689,109150.0,109140.0,0.19156294]
[1748328702888,0.21655689,109150.0,109140.0,0.00014868]
[1748328703142,0.23215689,109150.0,109140.0,0.329019]
[1748328703362,0.23215689,109150.0,109140.0,0.00014868]
[1748328703602,0.23215689,109150.0,109140.0,0.329019]
[1748328704050,0.23215689,109150.0,109140.0,0.330019]
[1748328704279,0.23215689,109150.0,109140.0,0.00114868]
[1748328704525,0.23215689,109150.0,109140.0,0.330019]
[1748328704971,0.23215689,109150.0,109140.0,0.00114868]
[1748328705204,0.23215689,109150.0,109140.0,0.332019]
[1748328705433,0.24669774,109150.0,109140.0,0.00114868]
[1748328705672,0.6109233,109150.0,109140.0,0.00114868]
[1748328705905,0.9509233,109150.0,109140.0,0.00214868]
[1748328706352,0.98201732,109150.0,109140.0,0.00214868]
[1748328706580,0.98201732,109150.0,109140.0,0.00114868]
[1748328707020,0.99256308,109150.0,109140.0,0.00114868]
[1748328707444,0.99256308,109150.0,109140.0,0.00014868]
[1748328707657,0.99456308,109150.0,109140.0,0.00014868]
[1748328708089,0.97744583,109150.0,109140.0,0.00014868]
[1748328709028,0.99451493,109150.0,109140.0,0.00014868]
[1748328710726,0.97744583,109150.0,109140.0,0.00014868]
[1748328711160,0.63744583,109150.0,109140.0,0.00014868]
[1748328711789,0.62890007,109150.0,109140.0,0.00014868]
[1748328714860,0.35422007,109150.0,109140.0,0.00014868]
[1748328715087,0.62898007,109150.0,109140.0,0.00014868]
[1748328716980,0.23895409,109140.0,109130.0,0.32887032]
[1748328717201,0.23895409,109140.0,109130.0,0.32891984]
[1748328717418,0.24794645,109140.0,109130.0,0.32891984]
[1748328718254,0.24894645,109140.0,109130.0,0.32891984]
[1748328718705,0.24994645,109140.0,109130.0,0.32891984]
[1748328720236,0.23344645,109140.0,109130.0,0.32891984]
[1748328720450,0.20357553,109140.0,109130.0,0.55345079]
[1748328720679,0.20357553,109140.0,109130.0,0.97021392]
[1748328720680,0.21273798,109140.0,109130.0,0.97021392]
[1748328720918,0.02948711,109140.0,109130.0,1.05973543]
[1748328721135,0.20357586,109140.0,109130.0,0.03214952]
[1748328721361,0.20357586,109140.0,109130.0,0.36101984]
[1748328721576,0.20357586,109140.0,109130.0,0.37018322]
[1748328723776,0.20357586,109140.0,109130.0,0.36101984]
[1748328723985,0.20357586,109140.0,109130.0,0.73647984]
[1748328724195,0.25001671,109140.0,109130.0,4.952e-05]
[1748328724403,0.25001671,109140.0,109130.0,0.40760952]
[1748328724817,0.25001671,109140.0,109130.0,0.73647984]
[1748328725025,0.21811671,109140.0,109130.0,0.73647984]
[1748328725232,0.20357586,109140.0,109130.0,0.34401984]
[1748328726711,0.20357586,109140.0,109130.0,0.12037103]
[1748328726923,0.19441341,109140.0,109130.0,0.44924135]
[1748328727142,0.19441341,109140.0,109130.0,0.35971984]
[1748328727681,0.19441341,109140.0,109130.0,0.32891984]
[1748328728108,0.21071341,109140.0,109130.0,0.32891984]
[1748328728748,0.22661341,109140.0,109130.0,0.32891984]
[1748328729783,0.21071341,109140.0,109130.0,0.32891984]
[1748328731743,0.21927744,109140.0,109130.0,0.32891984]
[1748328732182,0.21927744,109140.0,109130.0,4.952e-05]
[1748328732380,0.21927744,109140.0,109130.0,0.32891984]
[1748328733409,0.58441785,109140.0,109130.0,4.952e-05]
[1748328733631,1.7265156,109140.0,109130.0,4.952e-05]
[1748328733863,0.24787163,109110.0,109100.0,0.0058]
[1748328734076,0.24787163,109110.0,109100.0,0.00629541]
[1748328734077,0.63783862,109110.0,109100.0,0.00629541]
[1748328734294,0.68783862,109110.0,109100.0,0.00629541]
[1748328734513,0.71353986,109110.0,109100.0,0.00629541]
[1748328735522,0.73327505,109110.0,109100.0,0.00629541]
[1748328735749,0.73727505,109110.0,109100.0,0.00629541]
[1748328736385,1.08025895,109110.0,109100.0,0.00629541]
[1748328736607,1.07725895,109110.0,109100.0,0.00629541]
[1748328736821,1.80025895,109110.0,109100.0,0.00629541]
[1748328737038,1.80425895,109110.0,109100.0,0.00629541]
[1748328737251,1.80025895,109110.0,109100.0,0.00629541]
[1748328737493,1.79171102,109110.0,109100.0,0.00629541]
[1748328737675,1.79171102,109110.0,109100.0,0.00729541]
[1748328737676,1.86000968,109110.0,109100.0,0.00729541]
[1748328738139,1.88642524,109110.0,109100.0,0.00729541]
[1748328738385,2.18888,109110.0,109100.0,0.00729541]
[1748328738609,1.81000968,109110.0,109100.0,0.00729541]
[1748328738862,0.20170472,109070.0,109060.0,0.00085562]
[1748328739105,0.47650472,109070.0,109060.0,0.00085562]
[1748328739333,0.47650472,109070.0,109060.0,0.32972594]
[1748328739786,0.47650472,109070.0,109060.0,0.35663185]
[1748328740232,0.47650472,109070.0,109060.0,0.00190512]
[1748328740454,0.47650472,109070.0,109060.0,0.33077544]
[1748328740668,0.47650472,109070.0,109060.0,0.00190512]
[1748328740895,0.47650472,109070.0,109060.0,0.33077544]
[1748328741117,0.47650472,109070.0,109060.0,0.00190512]
[1748328741118,0.20170472,109070.0,109060.0,0.00190512]
[1748328741376,0.20170472,109070.0,109060.0,0.33177544]
[1748328741827,0.20170472,109070.0,109060.0,0.00290512]
[1748328742052,0.20170472,109070.0,109060.0,0.33177544]
[1748328744420,0.33749113,109070.0,109060.0,0.00290512]
[1748328744635,0.33749113,109070.0,109060.0,0.0020495]
[1748328745060,0.23184557,109070.0,109060.0,0.0020495]
[1748328745732,0.23184557,109070.0,109060.0,0.0010495]
[1748328745949,0.24944557,109070.0,109060.0,4.95e-05]
[1748328746404,0.25144557,109070.0,109060.0,4.95e-05]
[1748328746610,0.22024557,109070.0,109060.0,4.95e-05]
[1748328747573,0.22024557,109070.0,109060.0,0.32891982]
[1748328748798,0.25234557,109070.0,109060.0,4.95e-05]
[1748328750587,0.34189113,109070.0,109060.0,4.95e-05]
[1748328751432,0.36830669,109070.0,109060.0,4.95e-05]
[1748328751638,0.34189113,109070.0,109060.0,4.95e-05]
[1748328751847,0.36674327,109070.0,109060.0,4.95e-05]
[1748328752267,0.39315883,109070.0,109060.0,4.95e-05]
[1748328752678,0.39115883,109070.0,109060.0,4.95e-05]
[1748328752884,0.80665682,109070.0,109060.0,4.95e-05]
[1748328753086,0.80965682,109070.0,109060.0,4.95e-05]
[1748328753489,0.80765682,109070.0,109060.0,4.95e-05]
[1748328753901,0.78580468,109070.0,109060.0,0.00098392]
[1748328754088,1.81673944,109070.0,109060.0,0.00098392]
[1748328754325,1.81800714,109070.0,109060.0,0.00098392]
[1748328754537,0.02751711,109020.0,109010.0,0.46048]
[1748328754730,0.20179756,109020.0,109010.0,0.46048]
[1748328754933,0.20179756,109020.0,109010.0,0.80048]
[1748328755126,0.20179756,109020.0,109010.0,0.80965347]
[1748328755321,0.20179756,109020.0,109010.0,0.89917498]
[1748328755528,0.00917237,109020.0,109010.0,0.76205628]
[1748328755733,0.02751703,109020.0,109010.0,1.51944677]
[1748328755883,0.02751703,109020.0,109010.0,1.52876874]
[1748328756083,0.02751703,109020.0,109010.0,1.5429417]
[1748328756292,0.02751695,109020.0,109010.0,1.54294111]
[1748328756482,0.01834449,109020.0,109010.0,1.54294111]
[1748328756684,0.01834399,109020.0,109010.0,1.54294111]
[1748328756883,0.03668865,109020.0,109010.0,1.54294111]
[1748328757083,0.03768865,109020.0,109010.0,1.54694111]
[1748328757329,0.02851628,109020.0,109010.0,1.54694111]
[1748328757552,0.02851628,109020.0,109010.0,1.21807079]
[1748328757807,0.03768874,109020.0,109010.0,1.12854928]
[1748328758023,0.03768874,109020.0,109010.0,1.4574196]
[1748328758639,0.03768874,109020.0,109010.0,1.0288996]
[1748328758843,0.03768874,109020.0,109010.0,1.4574596]
[1748328759455,0.02851628,109020.0,109010.0,1.4574596]
[1748328760052,0.02851628,109020.0,109010.0,1.4849796]
[1748328760581,0.0193439,109020.0,109010.0,1.4849796]
[1748328760750,0.01934399,109020.0,109010.0,1.57450111]
[1748328761119,0.01934399,109020.0,109010.0,0.00914884]
[1748328761120,0.59629898,109020.0,109010.0,0.00914884]
[1748328761327,0.59629898,109020.0,109000.0,0.05]
[1748328761328,0.23998355,109010.0,109000.0,0.05]
[1748328761543,0.40370277,109010.0,109000.0,0.05]
[1748328761749,0.41288776,109010.0,109000.0,0.05004962]
[1748328762195,0.4922265,109010.0,109000.0,0.05004962]
[1748328762404,0.53473372,109010.0,109000.0,0.05004962]
[1748328762608,0.50539498,109010.0,109000.0,0.05004962]
[1748328763259,0.46539498,109010.0,109000.0,0.05004962]
[1748328763485,0.50839498,109010.0,109000.0,0.05004962]
[1748328763926,0.52222058,109010.0,109000.0,0.05004962]
[1748328764640,0.53099676,109010.0,109000.0,0.05004962]
[1748328764857,0.53499676,109010.0,109000.0,0.05104962]
[1748328765071,0.4608231,109010.0,109000.0,0.05104962]
[1748328766188,0.8008231,109010.0,109000.0,0.05104962]
[1748328766410,0.8008231,109010.0,108990.0,0.02488412]
[1748328766411,0.27526037,109000.0,108990.0,0.02488412]
[1748328766625,0.20196362,108930.0,108920.0,0.34665414]
[1748328766844,0.00917936,108940.0,108930.0,0.20196395]
[1748328766845,0.00917885,108940.0,108930.0,0.20196395]
[1748328767081,0.03671575,108940.0,108930.0,0.30068912]
[1748328767293,0.04589503,108940.0,108930.0,1.02707257]
[1748328767505,0.02753715,108940.0,108930.0,0.77659408]
[1748328767719,0.02753715,108940.0,108930.0,1.11659408]
[1748328767971,0.01835745,108940.0,108930.0,0.77659408]
[1748328768194,0.19813643,108960.0,108950.0,0.0312]
[1748328768863,0.18357044,108950.0,108940.0,0.34]
[1748328769086,0.18357044,108950.0,108940.0,0.34917936]
[1748328769300,0.18357044,108950.0,108940.0,0.36537936]
[1748328769529,0.18357044,108950.0,108940.0,0.79409936]
[1748328769750,0.18357044,108950.0,108940.0,0.3562]
[1748328769960,0.18357044,108950.0,108940.0,0.78492]
[1748328770582,0.18357044,108950.0,108940.0,0.79409936]
[1748328770972,0.18357044,108950.0,108940.0,0.97768665]
[1748328771177,0.18457044,108950.0,108940.0,0.86620337]
[1748328771387,0.18457044,108950.0,108940.0,0.79509936]
[1748328771591,0.18457044,108950.0,108940.0,0.81345783]
[1748328771808,0.18457044,108950.0,108940.0,1.00866423]
[1748328772232,0.18457044,108950.0,108940.0,1.02516423]
[1748328773550,0.18457044,108950.0,108940.0,1.03434325]
[1748328773769,0.18457044,108950.0,108940.0,1.01598512]
[1748328773991,0.18457044,108950.0,108940.0,0.68516414]
[1748328774211,0.001,108950.0,108940.0,0.68516414]
[1748328774434,0.01017784,108950.0,108940.0,0.81075344]
[1748328774681,0.01017776,108950.0,108940.0,1.15740758]
[1748328774899,0.01021776,108950.0,108940.0,1.15740758]
[1748328775092,0.02857387,108950.0,108940.0,0.78388847]
[1748328775441,0.00104,108950.0,108940.0,0.78388847]
[1748328775664,0.01021784,108950.0,108940.0,0.78388847]
[1748328775861,0.00104,108950.0,108940.0,0.78388847]
[1748328776239,0.00104,108950.0,108940.0,1.56006412]
[1748328776696,0.00104,108950.0,108940.0,1.21340998]
[1748328776934,0.01939594,108950.0,108940.0,1.10738847]
[1748328777229,0.01939594,108950.0,108940.0,1.12258847]
[1748328777496,0.0285742,108950.0,108940.0,1.12258847]
[1748328778062,0.04693098,108950.0,108940.0,1.17276933]
[1748328778311,0.04693098,108950.0,108940.0,1.12258855]
[1748328778735,0.22132358,108950.0,108940.0,1.10738855]
[1748328778738,0.01939636,108950.0,108940.0,1.10738796]
[1748328778977,0.01939594,108950.0,108940.0,1.10738796]
[1748328779200,0.01939577,108950.0,108940.0,1.21210947]
[1748328779443,0.01021776,108950.0,108940.0,1.21210947]
[1748328779663,0.01939569,108950.0,108940.0,1.21210947]
[1748328779899,0.03775196,108950.0,108940.0,1.09828928]
[1748328780127,0.04693039,108950.0,108940.0,1.10746762]
[1748328780357,0.01939586,108950.0,108940.0,1.12326762]
[1748328780624,0.03775171,108950.0,108940.0,1.21278913]
[1748328780847,0.04692997,108950.0,108940.0,1.21278913]
[1748328780987,0.03775171,108950.0,108940.0,1.12326762]
[1748328781206,0.04692997,108950.0,108940.0,1.12326762]
[1748328781436,0.03775272,108950.0,108940.0,1.10176573]
[1748328781653,0.21214515,108950.0,108940.0,0.97550459]
[1748328781861,0.21214515,108950.0,108940.0,1.23486459]
[1748328782073,0.20296705,108950.0,108940.0,1.24404361]
[1748328783570,0.19378879,108950.0,108940.0,1.0464]
[1748328783779,0.19378879,108950.0,108940.0,1.24834559]
[1748328784270,0.19378879,108950.0,108940.0,1.22998729]
[1748328784485,0.19378879,108950.0,108940.0,0.78041936]
[1748328784694,0.19378879,108950.0,108940.0,0.96400665]
[1748328784928,0.18461044,108950.0,108940.0,0.96400665]
[1748328785128,0.18461044,108950.0,108940.0,0.98236512]
[1748328785372,0.01021835,108950.0,108940.0,1.03063862]
[1748328785587,0.01021835,108950.0,108940.0,1.06439641]
[1748328785791,0.02857429,108950.0,108940.0,1.06439641]
[1748328786207,0.0285742,108950.0,108940.0,1.06439641]
[1748328787055,0.03775255,108950.0,108940.0,1.06439641]
[1748328787465,0.01939594,108950.0,108940.0,1.03222291]
[1748328787681,0.02857429,108950.0,108940.0,1.03222291]
[1748328787889,0.0285742,108950.0,108940.0,1.03222291]
[1748328788298,0.03775255,108950.0,108940.0,1.03222291]
[1748328788952,0.01939577,108950.0,108940.0,1.07836664]
[1748328789162,0.03775204,108950.0,108940.0,1.03222291]
[1748328789364,0.04693056,108950.0,108940.0,1.30742308]
[1748328789569,0.04693056,108950.0,108940.0,1.03222308]
[1748328789778,0.22132316,108950.0,108940.0,1.26674414]
[1748328790633,0.22132316,108950.0,108940.0,1.27039796]
[1748328791062,0.03775255,108950.0,108940.0,1.39680805]
[1748328791273,0.04693098,108950.0,108940.0,1.39680805]
[1748328791695,0.04693098,108950.0,108940.0,1.44997188]
[1748328792438,0.04693098,108950.0,108940.0,1.17477188]
[1748328792645,0.221324,108950.0,108940.0,1.06969213]
[1748328792853,0.20296739,108950.0,108940.0,0.86082556]
[1748328793066,0.20296739,108950.0,108940.0,0.77128]
[1748328793483,0.20296739,108950.0,108940.0,0.78045936]
[1748328794312,0.20296739,108950.0,108940.0,0.78963864]
[1748328794729,0.19378896,108950.0,108940.0,0.77128]
[1748328795139,0.19378896,108950.0,108940.0,0.78045936]
[1748328795355,0.19378896,108950.0,108940.0,0.77128]
[1748328795571,0.21094924,108950.0,108940.0,0.77128]
[1748328797534,0.21094924,108950.0,108940.0,1.04648]
[1748328798370,0.20177072,108950.0,108940.0,1.13561279]
[1748328798774,0.20177072,108950.0,108940.0,1.04648]
[1748328799415,0.20177072,108950.0,108940.0,0.34]
[1748328799862,0.21827072,108950.0,108940.0,0.34]
[1748328800128,0.19276648,108940.0,108930.0,0.027539]
[1748328800346,0.23499242,108940.0,108930.0,0.367539]
[1748328800790,0.2521527,108940.0,108930.0,0.367539]
[1748328800994,0.2356527,108940.0,108930.0,0.367539]
[1748328802276,0.2366527,108940.0,108930.0,0.367539]
[1748328802685,0.2376527,108940.0,108930.0,0.367539]
[1748328804312,0.2703527,108940.0,108930.0,0.367539]
[1748328804543,0.21136648,108940.0,108930.0,0.367539]
[1748328805178,0.23710052,108940.0,108930.0,0.367539]
[1748328805386,0.2285194,108940.0,108930.0,0.367539]
[1748328805599,0.2285194,108940.0,108930.0,0.34]
[1748328806016,0.2119194,108940.0,108930.0,0.34]
[1748328806226,0.19476648,108940.0,108930.0,0.34]
[1748328809426,0.26894014,108940.0,108930.0,0.34]
[1748328810498,0.19476648,108940.0,108930.0,0.34]
[1748328814263,0.19476648,108940.0,108930.0,0.3491802]
[1748328814445,0.19476648,108940.0,108930.0,0.34]
[1748328816056,0.002,108940.0,108930.0,0.54020414]
[1748328816263,0.01117869,108940.0,108930.0,1.01981117]
[1748328816487,0.01117869,108940.0,108930.0,0.76241081]
[1748328816488,0.02035754,108940.0,108930.0,0.76241081]
[1748328816728,0.02953665,108940.0,108930.0,0.76241081]
[1748328816946,0.02953656,108940.0,108930.0,0.76241081]
[1748328817169,0.02953656,108940.0,108930.0,0.6728893]
[1748328817802,0.03871575,108940.0,108930.0,0.6728893]
[1748328818028,0.02035754,108940.0,108930.0,0.6728893]
[1748328818242,0.01117869,108940.0,108930.0,0.6728893]
[1748328818511,0.02035754,108940.0,108930.0,0.6728893]
[1748328818715,0.02035754,108940.0,108930.0,0.76241081]
[1748328818921,0.01117869,108940.0,108930.0,0.76241081]
[1748328819106,0.02035754,108940.0,108930.0,1.10933268]
[1748328819519,0.01117869,108940.0,108930.0,1.10933268]
[1748328819774,0.002,108940.0,108930.0,1.10933268]
[1748328820921,0.002,108940.0,108930.0,1.15473268]
[1748328821131,0.002,108940.0,108930.0,1.86517268]
[1748328821555,0.002,108940.0,108930.0,1.99517268]
[1748328821971,0.07421366,108950.0,108930.0,0.6860893]
[1748328822200,0.1017482,108950.0,108940.0,0.67187017]
[1748328822432,0.10174786,108950.0,108940.0,0.68104894]
[1748328822647,0.09256969,108950.0,108940.0,0.95624894]
[1748328822855,0.10174804,108950.0,108940.0,0.83550338]
[1748328823076,0.11092647,108950.0,108940.0,0.56030338]
[1748328823315,0.11092647,108950.0,108930.0,0.63398365]
[1748328823316,0.21112411,108940.0,108930.0,0.63398365]
[1748328823528,0.02753682,108940.0,108930.0,0.98316352]
[1748328823731,0.0367161,108940.0,108930.0,0.99234322]
[1748328823944,0.0367161,108940.0,108930.0,0.98734322]
[1748328824150,0.0367161,108940.0,108930.0,0.73686473]
[1748328824355,0.0367161,108940.0,108930.0,0.73586473]
[1748328824556,0.03671677,108940.0,108930.0,0.97716352]
[1748328824753,0.02753783,108940.0,108930.0,0.97816352]
[1748328824975,0.20194593,108940.0,108930.0,0.9781636]
[1748328825181,0.19968729,108940.0,108930.0,0.001]
[1748328825391,0.21728729,108940.0,108930.0,0.4463802]
[1748328825600,0.21728729,108940.0,108930.0,0.7863802]
[1748328826027,0.21728729,108940.0,108930.0,0.79556032]
[1748328826435,0.21728729,108940.0,108930.0,0.7772]